bitfinex/quotes_ETHUSD_20251021
["timestamp","ask_amount","ask_price","bid_price","bid_amount"]
[1761041955319,26.25355704,3875.5,3875.4,0.00089316]
[1761041955520,23.89917604,3875.5,3875.4,0.00089316]
[1761041955706,14.32863404,3875.5,3875.4,0.00089316]
[1761041955905,25.44103704,3875.5,3875.4,0.00089316]
[1761041956111,16.38113917,3875.5,3875.4,0.00089316]
[1761041956489,16.48013917,3875.5,3875.4,0.00089316]
[1761041956989,21.65053817,3875.5,3875.4,0.00089316]
[1761041957796,32.94309517,3875.5,3875.4,0.00089316]
[1761041958120,33.33759804,3875.5,3875.4,0.00089316]
[1761041958320,30.03347404,3875.5,3875.4,0.00089316]
[1761041958891,26.48227404,3875.5,3875.4,0.00089316]
[1761041960015,28.92802804,3875.5,3875.4,0.00089316]
[1761041961013,28.98499704,3875.5,3875.4,0.00089316]
[1761041962027,39.65003904,3875.5,3875.4,0.00089316]
[1761041962200,38.47390904,3875.5,3875.4,0.00089316]
[1761041962405,27.33475853,3875.5,3875.4,0.00089316]
[1761041962805,27.33475853,3875.5,3875.0,0.002]
[1761041962806,0.50688,3875.2,3875.0,0.002]
[1761041963005,25.723612,3874.6,3874.0,0.002]
[1761041963218,2.63794496,3874.7,3874.0,0.002]
[1761041963219,35.78707959,3874.1,3874.0,0.002]
[1761041963395,32.4162975,3874.1,3874.0,0.002]
[1761041963597,37.22154376,3874.1,3874.0,0.002]
[1761041963998,43.88085476,3874.1,3874.0,0.002]
[1761041964199,43.23152446,3874.1,3874.0,0.002]
[1761041964514,2.58224448,3872.6,3872.5,0.2217]
[1761041964849,8.33818344,3872.6,3872.5,0.6763]
[1761041968844,2.58224448,3872.6,3872.5,0.6763]
[1761041971734,2.58224448,3872.6,3872.5,0.6783]
[1761041973253,1.728,3873.1,3872.5,0.685]
[1761041973544,0.1288,3872.7,3872.6,0.4613]
[1761041979837,4.71486898,3873.2,3872.6,0.4613]
[1761041979838,2.13302325,3873.2,3872.6,0.4613]
[1761041980147,0.1288,3873.0,3872.6,0.4613]
[1761041980318,0.1288,3873.0,3872.6,3.04350418]
[1761041980813,0.1288,3873.0,3872.7,0.4613]
[1761041986046,0.1288,3873.0,3872.7,3.04346218]
[1761041986253,0.1288,3873.0,3872.8,0.4613]
[1761041987156,0.1288,3873.0,3872.8,3.0433811]
[1761041987621,0.1288,3873.0,3872.9,0.4613]
[1761041996478,0.1288,3873.5,3873.1,2.5818935]
[1761041996771,0.1288,3873.5,3873.4,0.222]
[1761041997178,0.1288,3873.5,3873.4,0.6833]
[1761041998178,0.1288,3873.5,3873.4,0.222]
[1761041998384,2.7104445,3873.5,3873.4,0.222]
[1761041998873,2.7104445,3873.5,3873.4,0.6833]
[1761041999075,2.7104445,3873.5,3873.4,0.4613]
[1761041999876,2.58177781,3873.3,3873.0,0.4613]
[1761042000578,2.58173396,3873.4,3873.0,0.4613]
[1761042000946,2.71048388,3873.5,3873.0,0.4613]
[1761042001166,0.1288,3873.5,3873.1,0.2229]
[1761042001675,0.1288,3873.5,3873.2,0.4644]
[1761042002683,0.1288,3873.5,3873.2,3.04623449]
[1761042003053,0.1288,3873.5,3873.3,0.4644]
[1761042003259,0.1288,3873.5,3873.2,0.4644]
[1761042004178,2.71045464,3873.5,3873.2,0.4644]
[1761042004948,2.71045464,3873.5,3872.8,0.1288]
[1761042004949,0.1288,3873.5,3872.8,0.1288]
[1761042005148,6.49431702,3873.7,3872.8,3.263]
[1761042005149,2.71073485,3873.1,3872.8,3.263]
[1761042005379,0.1288,3873.1,3872.8,3.263]
[1761042005576,0.1288,3873.1,3872.8,3.7274]
[1761042006886,2.7107124,3873.1,3872.8,0.4644]
[1761042007184,2.7107124,3873.1,3872.6,0.002]
[1761042007185,0.1288,3873.1,3872.6,0.002]
[1761042007387,2.58210199,3872.9,3872.6,0.002]
[1761042007555,2.7109195,3872.8,3872.6,0.002]
[1761042007752,0.1288,3872.8,3872.6,0.002]
[1761042007956,8.2233638,3872.7,3872.6,0.002]
[1761042008766,2.5821778,3872.7,3872.6,0.002]
[1761042009386,0.1288,3872.8,3872.6,0.002]
[1761042009604,0.1288,3872.8,3872.6,0.4664]
[1761042010110,2.71092385,3872.8,3872.6,0.4664]
[1761042010607,2.5821778,3872.7,3872.6,0.4664]
[1761042013810,0.1288,3872.8,3872.6,0.4664]
[1761042015316,2.7109165,3872.8,3872.6,0.002]
[1761042015894,2.5821778,3872.7,3872.6,0.002]
[1761042016088,2.71092929,3872.8,3872.6,0.002]
[1761042017218,2.5821778,3872.7,3872.6,0.002]
[1761042017713,0.1288,3872.8,3872.6,0.002]
[1761042017880,2.71092522,3872.8,3872.6,0.4547]
[1761042019015,2.5821778,3872.7,3872.6,0.002]
[1761042020910,2.71093412,3872.8,3872.6,0.002]
[1761042021109,2.5821778,3872.7,3872.6,0.002]
[1761042021501,2.71093744,3872.8,3872.6,0.002]
[1761042021714,2.5821778,3872.7,3872.6,0.002]
[1761042025908,2.5821778,3872.7,3872.6,0.4547]
[1761042026098,2.5821778,3872.7,3872.6,0.002]
[1761042027943,0.1288,3872.8,3872.6,0.002]
[1761042027944,2.71092717,3872.8,3872.6,0.002]
[1761042029649,2.71092717,3872.8,3872.6,0.4547]
[1761042031761,0.1288,3872.8,3872.7,0.4631]
[1761042032043,2.58237963,3873.9,3873.0,2.58192883]
[1761042032249,0.1288,3873.5,3873.1,2.58190827]
[1761042032407,0.1288,3873.5,3873.0,2.58197539]
[1761042032605,2.58176859,3873.4,3872.9,0.4631]
[1761042032804,0.1288,3873.1,3872.9,0.4631]
[1761042033338,0.1288,3873.1,3872.8,3.263]
[1761042033540,0.1288,3873.1,3873.0,0.4631]
[1761042041170,0.1288,3873.1,3873.0,0.4651]
[1761042047994,0.1288,3873.1,3873.0,3.04707779]
[1761042053423,0.1288,3873.1,3873.0,0.4651]
[1761042053596,0.1288,3873.1,3873.0,0.002]
[1761042063743,0.1288,3873.1,3873.0,3.01667779]
[1761042063943,0.1288,3873.1,3873.0,0.4347]
[1761042064745,0.1288,3873.1,3873.0,0.002]
[1761042064947,0.1288,3873.1,3873.0,0.4347]
[1761042065849,0.1288,3873.1,3873.0,0.002]
[1761042067035,0.1288,3873.1,3873.0,0.4347]
[1761042069339,0.1288,3873.1,3873.0,3.01667779]
[1761042071175,0.1288,3873.1,3873.0,0.4347]
[1761042074788,0.1288,3873.1,3873.0,0.002]
[1761042074989,3.12126422,3873.1,3873.0,0.002]
[1761042075389,4.84926422,3873.1,3873.0,0.002]
[1761042075591,15.13151409,3873.1,3873.0,0.002]
[1761042075795,11.85841895,3873.1,3873.0,0.002]
[1761042075992,11.96197386,3873.1,3873.0,0.002]
[1761042076607,14.78541386,3873.1,3873.0,0.002]
[1761042076895,7.58251213,3873.1,3873.0,0.002]
[1761042077688,13.26872813,3873.1,3873.0,0.002]
[1761042078282,7.93859013,3873.1,3873.0,0.002]
[1761042078592,4.84926422,3873.1,3873.0,0.002]
[1761042078801,8.24000722,3873.1,3873.0,0.002]
[1761042078995,8.01119322,3873.1,3873.0,0.002]
[1761042079895,4.84926422,3873.1,3873.0,0.002]
[1761042080216,6.89533422,3873.1,3873.0,0.002]
[1761042080611,8.78589822,3873.1,3873.0,0.002]
[1761042081732,7.75337322,3873.1,3873.0,0.002]
[1761042082214,11.01737322,3873.1,3873.0,0.002]
[1761042082622,8.11326422,3873.1,3873.0,0.002]
[1761042082807,10.58185222,3873.1,3873.0,0.002]
[1761042084200,10.97635509,3873.1,3873.0,0.002]
[1761042084384,22.56511109,3873.1,3873.0,0.002]
[1761042084707,22.23422809,3873.1,3873.0,0.002]
[1761042085626,13.85487422,3873.1,3873.0,0.002]
[1761042086523,8.21681055,3873.1,3873.0,0.002]
[1761042086726,10.56451255,3873.1,3873.0,0.002]
[1761042086900,16.09273314,3873.1,3873.0,0.002]
[1761042087736,18.69916914,3873.1,3873.0,0.002]
[1761042088144,18.35716914,3873.1,3873.0,0.002]
[1761042088707,21.12908714,3873.1,3873.0,0.002]
[1761042088906,20.33346114,3873.1,3873.0,0.002]
[1761042089206,17.26580414,3873.1,3873.0,0.002]
[1761042089701,17.87343014,3873.1,3873.0,0.002]
[1761042090134,17.43629014,3873.1,3873.0,0.002]
[1761042090640,20.31820014,3873.1,3873.0,0.002]
[1761042090844,14.54697955,3873.1,3873.0,0.002]
[1761042091219,14.16637055,3873.1,3873.0,0.002]
[1761042091419,13.65114455,3873.1,3873.0,0.002]
[1761042092044,13.29389255,3873.1,3873.0,0.002]
[1761042092940,17.06774055,3873.1,3873.0,0.002]
[1761042094037,18.69598155,3873.1,3873.0,0.002]
[1761042094344,17.09623355,3873.1,3873.0,0.002]
[1761042094507,16.15898155,3873.1,3873.0,0.002]
[1761042095148,17.93685055,3873.1,3873.0,0.002]
[1761042095525,17.03322455,3873.1,3873.0,0.002]
[1761042096052,8.21681055,3873.1,3873.0,0.002]
[1761042096363,17.76220155,3873.1,3873.0,0.002]
[1761042096654,18.16720892,3873.1,3873.0,0.002]
[1761042096860,17.76220155,3873.1,3873.0,0.002]
[1761042097245,21.30161755,3873.1,3873.0,0.002]
[1761042097446,14.54553055,3873.1,3873.0,0.002]
[1761042097646,14.19140355,3873.1,3873.0,0.002]
[1761042099059,12.64505155,3873.1,3873.0,0.002]
[1761042099262,11.99490655,3873.1,3873.0,0.002]
[1761042099456,10.68354655,3873.1,3873.0,0.002]
[1761042100261,8.11781055,3873.1,3873.0,0.002]
[1761042100460,10.82254655,3873.1,3873.0,0.002]
[1761042101363,17.64270155,3873.1,3873.0,0.002]
[1761042101567,19.77938955,3873.1,3873.0,0.002]
[1761042102160,12.62989055,3873.1,3873.0,0.002]
[1761042102701,16.44763755,3873.1,3873.0,0.002]
[1761042102857,8.11781055,3873.1,3873.0,0.002]
[1761042104293,11.04678855,3873.1,3873.0,0.002]
[1761042105289,12.45262855,3873.1,3873.0,0.002]
[1761042106294,11.82427055,3873.1,3873.0,0.002]
[1761042106990,12.31777342,3873.1,3873.0,0.002]
[1761042107193,20.68109742,3873.1,3873.0,0.002]
[1761042108170,24.17632042,3873.1,3873.0,0.002]
[1761042108366,22.80811842,3873.1,3873.0,0.002]
[1761042109269,24.74566042,3873.1,3873.0,0.002]
[1761042110217,26.92302142,3873.1,3873.0,0.002]
[1761042110584,27.32804918,3873.1,3873.0,0.002]
[1761042111207,25.12019118,3873.1,3873.0,0.002]
[1761042111409,20.33134118,3873.1,3873.0,0.002]
[1761042111808,19.23751118,3873.1,3873.0,0.002]
[1761042112314,9.52322118,3873.1,3873.0,0.002]
[1761042112515,21.06725618,3873.1,3873.0,0.002]
[1761042113422,26.40867718,3873.1,3873.0,0.002]
[1761042113627,24.39910318,3873.1,3873.0,0.002]
[1761042114403,24.32457618,3873.1,3873.0,0.002]
[1761042115325,20.36061618,3873.1,3873.0,0.002]
[1761042115505,17.31520218,3873.1,3873.0,0.002]
[1761042116429,28.55586618,3873.1,3873.0,0.002]
[1761042117631,28.99468518,3873.1,3873.0,0.002]
[1761042117851,27.39468518,3873.1,3873.0,0.002]
[1761042118550,9.52322118,3873.1,3873.0,0.002]
[1761042118727,29.40908118,3873.1,3873.0,0.002]
[1761042119558,9.52322118,3873.1,3873.0,0.002]
[1761042119762,29.06708118,3873.1,3873.0,0.002]
[1761042120559,30.66943718,3873.1,3873.0,0.002]
[1761042121055,30.97688604,3873.1,3873.0,0.002]
[1761042121551,39.42564228,3873.1,3873.0,0.002]
[1761042122225,33.60512528,3873.1,3873.0,0.002]
[1761042122752,34.19292328,3873.1,3873.0,0.002]
[1761042123140,32.33138828,3873.1,3873.0,0.002]
[1761042123652,37.11441128,3873.1,3873.0,0.002]
[1761042123851,35.77714328,3873.1,3873.0,0.002]
[1761042124453,35.18297328,3873.1,3873.0,0.002]
[1761042124752,36.05288388,3873.1,3873.0,0.002]
[1761042125054,35.83177588,3873.1,3873.0,0.002]
[1761042125756,39.83069188,3873.1,3873.0,0.002]
[1761042126555,35.47716788,3873.1,3873.0,0.002]
[1761042126760,39.44014088,3873.1,3873.0,0.002]
[1761042127762,39.83069188,3873.1,3873.0,0.002]
[1761042129755,9.83069188,3873.1,3873.0,0.002]
[1761042129945,39.83069188,3873.1,3873.0,0.002]
[1761042130143,39.83069188,3873.1,3872.6,0.002]
[1761042130144,2.5821778,3872.7,3872.6,1e-08]
[1761042130351,31.92745848,3872.6,3872.5,0.002]
[1761042130545,32.72841021,3872.6,3872.5,0.002]
[1761042130938,36.12678843,3872.6,3872.5,0.002]
[1761042131254,36.12678843,3872.6,3872.2,1e-08]
[1761042131255,3.08932454,3872.3,3872.2,1e-08]
[1761042131421,45.27469082,3872.3,3872.2,1e-08]
[1761042131626,45.68524391,3872.3,3872.2,1e-08]
[1761042131926,45.78884361,3872.3,3872.2,1e-08]
[1761042132474,4.81739123,3872.2,3869.6,0.2291]
[1761042132771,2.58314762,3871.3,3869.6,0.2291]
[1761042132977,6.49341455,3870.9,3870.7,0.4279]
[1761042133181,3.65650287,3871.2,3870.7,0.4279]
[1761042133182,5.84544528,3870.8,3870.7,0.4279]
[1761042134968,6.25071153,3870.8,3870.7,0.4279]
[1761042135166,5.84544528,3870.8,3870.7,0.4279]
[1761042137975,18.51460328,3870.8,3870.7,0.4279]
[1761042138178,12.18080828,3870.8,3870.7,0.4279]
[1761042138385,5.84544528,3870.8,3870.7,0.4279]
[1761042138890,2.58359764,3870.6,3869.9,2.80043643]
[1761042139173,5.84669353,3870.5,3869.9,0.2164]
[1761042139479,3.263,3870.5,3869.9,2.80042829]
[1761042139774,5.84664695,3870.5,3870.0,0.4646]
[1761042139968,3.263,3870.5,3870.0,0.4646]
[1761042140376,0.1288,3870.4,3870.0,0.4646]
[1761042142387,0.1288,3870.4,3870.3,0.002]
[1761042142564,0.1288,3870.4,3870.3,0.4666]
[1761042144459,2.71251227,3870.4,3870.3,0.4666]
[1761042146292,0.1288,3870.4,3870.3,0.4666]
[1761042151107,3.0149828,3870.4,3870.3,0.002]
[1761042152204,3.40948567,3870.4,3870.3,0.002]
[1761042152402,3.0149828,3870.4,3870.3,0.002]
[1761042152605,9.4267618,3870.4,3870.3,0.002]
[1761042152912,12.34819432,3870.4,3870.3,0.002]
[1761042153214,13.28383132,3870.4,3870.3,0.002]
[1761042153399,15.64685132,3870.4,3870.3,0.002]
[1761042153712,14.85151232,3870.4,3870.3,0.002]
[1761042154011,13.28933732,3870.4,3870.3,0.002]
[1761042155079,13.28933732,3870.4,3870.3,0.4353]
[1761042155080,4.991,3870.4,3870.3,0.4353]
[1761042162024,5.3962976,3870.4,3870.3,0.4353]
[1761042165734,5.3962976,3870.4,3870.3,0.002]
[1761042165940,7.98000987,3870.4,3870.3,0.002]
[1761042166238,7.98000987,3870.4,3870.3,0.4353]
[1761042168137,7.98000987,3870.4,3870.3,0.002]
[1761042171007,7.98000987,3870.4,3870.3,0.4353]
[1761042171341,5.3962976,3870.4,3870.3,0.4353]
[1761042171563,7.98000987,3870.4,3870.3,0.4353]
[1761042171922,5.3962976,3870.4,3870.3,0.4353]
[1761042173055,0.4052976,3870.4,3870.3,3.01907903]
[1761042173214,0.1288,3870.7,3870.3,0.99838932]
[1761042173415,0.1288,3870.7,3870.5,2.58359791]
[1761042173855,0.1288,3870.7,3870.6,0.4333]
[1761042185906,0.1288,3870.7,3870.3,0.002]
[1761042186100,0.1288,3870.7,3870.4,0.4554]
[1761042186473,0.1288,3870.7,3870.3,0.002]
[1761042186677,0.1288,3870.7,3870.4,0.4554]
[1761042187300,0.1288,3870.7,3870.6,2.58357877]
[1761042187512,3.262,3871.3,3870.4,7.13665442]
[1761042187805,3.3908,3871.4,3870.6,0.1288]
[1761042187989,3.3908,3871.4,3871.0,2.58325889]
[1761042188194,3.3908,3871.4,3871.3,0.2333]
[1761042188500,2.58269742,3872.0,3871.3,0.2333]
[1761042188804,3.262,3871.7,3871.4,0.4554]
[1761042189298,0.1288,3871.9,3871.5,2.58297688]
[1761042189492,0.1288,3871.9,3871.4,0.4554]
[1761042190166,0.1288,3871.9,3871.4,3.03842299]
[1761042190602,0.1288,3871.9,3871.5,0.4554]
[1761042192907,2.71154667,3871.9,3871.5,0.4554]
[1761042193115,0.1288,3871.9,3871.5,0.4554]
[1761042193482,2.71155782,3871.9,3871.5,0.4554]
[1761042193688,0.1288,3871.9,3871.5,0.4554]
[1761042194211,2.71151752,3871.9,3871.5,0.4554]
[1761042195208,0.1288,3871.9,3871.5,0.4554]
[1761042195791,2.71152201,3871.9,3871.5,0.4554]
[1761042197813,2.58381566,3871.8,3871.5,0.4554]
[1761042198710,0.001,3871.8,3871.5,0.4554]
[1761042198912,0.001,3871.8,3871.3,2.81638801]
[1761042198913,2.58381684,3871.8,3871.3,0.2333]
[1761042199095,2.58381684,3871.8,3871.4,0.4281]
[1761042199885,0.001,3871.8,3871.4,0.4281]
[1761042201217,0.40616676,3871.8,3871.4,0.4281]
[1761042201514,0.001,3871.8,3871.4,3.01114371]
[1761042201719,0.001,3871.8,3871.5,0.4281]
[1761042204014,0.001,3871.8,3871.5,3.01105097]
[1761042204225,0.001,3871.8,3871.6,3.01099472]
[1761042204518,0.001,3871.8,3871.6,0.4281]
[1761042204722,0.001,3871.8,3871.7,0.4281]
[1761042206598,0.001,3871.8,3871.4,2.58302573]
[1761042206785,0.001,3871.8,3871.5,0.4281]
[1761042207818,0.001,3871.8,3871.5,3.01107236]
[1761042208233,0.001,3871.8,3871.6,0.4281]
[1761042212021,0.001,3871.8,3871.3,2.81639544]
[1761042212221,6.554937,3871.2,3870.6,0.002]
[1761042212427,2.58351202,3870.7,3870.6,0.002]
[1761042212588,0.1288,3870.7,3870.6,0.002]
[1761042213122,0.1288,3871.1,3870.7,2.58348633]
[1761042213329,3.261,3871.2,3870.7,2.58345746]
[1761042213621,3.261,3871.2,3871.1,0.2355]
[1761042214627,3.261,3871.2,3871.1,0.6791]
[1761042214928,3.261,3871.2,3871.0,0.002]
[1761042215591,5.84420657,3871.2,3871.0,0.002]
[1761042215917,3.261,3871.2,3871.0,0.002]
[1761042216418,3.261,3871.2,3871.0,0.4456]
[1761042218944,3.261,3871.2,3871.0,0.002]
[1761042219323,5.84418144,3871.2,3871.0,0.002]
[1761042219495,2.58318144,3871.2,3871.0,0.002]
[1761042221232,0.1288,3871.3,3871.1,0.2355]
[1761042221707,0.1288,3871.3,3871.2,0.4436]
[1761042222037,0.1288,3871.3,3871.1,0.6791]
[1761042222240,2.58316408,3871.3,3871.0,0.002]
[1761042222430,0.1288,3871.1,3871.0,0.002]
[1761042222999,0.1288,3871.1,3871.0,0.4456]
[1761042224633,2.71195327,3871.3,3871.0,0.4456]
[1761042225241,0.1288,3871.3,3871.0,0.4456]
[1761042225423,2.7119388,3871.3,3871.0,0.4456]
[1761042226321,2.58324507,3871.1,3871.0,0.002]
[1761042227122,2.58320042,3871.2,3871.0,0.002]
[1761042227332,2.58324507,3871.1,3871.0,0.002]
[1761042235370,2.58324507,3871.1,3871.0,0.4456]
[1761042236032,2.71191832,3871.3,3871.0,0.4456]
[1761042236248,2.58324507,3871.1,3871.0,0.002]
[1761042238162,13.4857778,3871.1,3871.0,0.002]
[1761042238330,10.38753094,3871.1,3871.0,0.002]
[1761042239034,6.33674794,3871.1,3871.0,0.002]
[1761042239342,12.68262294,3871.1,3871.0,0.002]
[1761042240231,16.36818494,3871.1,3871.0,0.002]
[1761042240431,13.80711094,3871.1,3871.0,0.002]
[1761042241260,16.49047494,3871.1,3871.0,0.002]
[1761042241570,16.9223152,3871.1,3871.0,0.002]
[1761042241729,17.22976406,3871.1,3871.0,0.002]
[1761042241935,16.92813914,3871.1,3871.0,0.002]
[1761042242148,8.98270414,3871.1,3871.0,0.002]
[1761042242335,37.57582714,3871.1,3871.0,0.002]
[1761042242527,22.22670428,3871.1,3871.0,0.002]
[1761042242749,22.63199005,3871.1,3871.0,0.002]
[1761042243138,32.10527605,3871.1,3871.0,0.002]
[1761042243832,32.41272491,3871.1,3871.0,0.002]
[1761042244334,37.41778991,3871.1,3871.0,0.002]
[1761042245058,37.82310023,3871.1,3871.0,0.002]
[1761042245237,39.12725023,3871.1,3871.0,0.002]
[1761042246352,36.48676823,3871.1,3871.0,0.002]
[1761042246773,14.3654995,3871.1,3871.0,0.002]
[1761042247065,25.4321805,3871.1,3871.0,0.002]
[1761042247439,37.4794565,3871.1,3871.0,0.002]
[1761042248350,36.50497764,3871.1,3871.0,0.002]
[1761042248564,31.89967464,3871.1,3871.0,0.002]
[1761042249470,35.21260964,3871.1,3871.0,0.002]
[1761042249882,33.70460964,3871.1,3871.0,0.002]
[1761042250084,31.39289964,3871.1,3871.0,0.002]
[1761042250387,15.98470064,3871.1,3871.0,0.002]
[1761042250545,31.59670364,3871.1,3871.0,0.002]
[1761042250749,30.50594164,3871.1,3871.0,0.002]
[1761042251158,30.60494164,3871.1,3871.0,0.002]
[1761042251351,30.24086064,3871.1,3871.0,0.002]
[1761042251545,30.64002764,3871.1,3871.0,0.002]
[1761042251745,26.33926664,3871.1,3871.0,0.002]
[1761042252560,27.29798264,3871.1,3871.0,0.002]
[1761042253776,32.36915664,3871.1,3871.0,0.002]
[1761042253950,28.53397364,3871.1,3871.0,0.002]
[1761042254348,19.38455964,3871.1,3871.0,0.002]
[1761042254593,18.49864453,3871.1,3871.0,0.002]
[1761042254788,17.14510953,3871.1,3871.0,0.002]
[1761042255165,16.73979921,3871.1,3871.0,0.002]
[1761042255765,18.67903221,3871.1,3871.0,0.002]
[1761042255954,16.81280221,3871.1,3871.0,0.002]
[1761042256674,16.74780221,3871.1,3871.0,0.002]
[1761042257249,14.46459721,3871.1,3871.0,0.002]
[1761042257650,14.86981117,3871.1,3871.0,0.002]
[1761042257849,14.86981117,3871.1,3871.0,0.4755]
[1761042258346,20.11177617,3871.1,3871.0,0.4755]
[1761042258550,20.51703806,3871.1,3871.0,0.002]
[1761042259267,20.78561806,3871.1,3871.0,0.002]
[1761042259471,0.81047585,3871.1,3871.0,0.4755]
[1761042259776,6.37830696,3871.1,3871.0,0.4755]
[1761042261414,28.54284023,3871.1,3871.0,0.002]
[1761042261580,35.1810481,3871.1,3871.0,0.002]
[1761042261773,25.2279931,3871.1,3871.0,0.002]
[1761042261976,25.1289931,3871.1,3871.0,0.002]
[1761042262308,22.0289751,3871.1,3871.0,0.002]
[1761042262516,23.4031451,3871.1,3871.0,0.002]
[1761042262870,23.5021451,3871.1,3871.0,0.002]
[1761042263478,28.1419431,3871.1,3871.0,0.002]
[1761042263879,28.0429431,3871.1,3871.0,0.002]
[1761042264078,28.95627196,3871.1,3871.0,0.002]
[1761042264520,34.15855796,3871.1,3871.0,0.002]
[1761042264816,33.64516496,3871.1,3871.0,0.002]
[1761042265015,29.52289096,3871.1,3871.0,0.002]
[1761042265218,29.21089096,3871.1,3871.0,0.002]
[1761042265531,35.11953996,3871.1,3871.0,0.002]
[1761042265684,34.66550096,3871.1,3871.0,0.002]
[1761042265885,29.35254496,3871.1,3871.0,0.002]
[1761042266084,28.87704496,3871.1,3871.0,0.002]
[1761042266626,31.18658696,3871.1,3871.0,0.002]
[1761042266916,25.0877491,3871.1,3871.0,0.002]
[1761042267123,24.6063701,3871.1,3871.0,0.002]
[1761042267492,15.6045391,3871.1,3871.0,0.002]
[1761042267695,25.6756901,3871.1,3871.0,0.002]
[1761042268237,25.2828381,3871.1,3871.0,0.002]
[1761042268725,28.7916841,3871.1,3871.0,0.002]
[1761042269185,28.38642221,3871.1,3871.0,0.002]
[1761042269730,36.63972921,3871.1,3871.0,0.002]
[1761042270418,32.70334986,3871.1,3871.0,0.002]
[1761042270727,30.78539186,3871.1,3871.0,0.002]
[1761042271825,35.93323286,3871.1,3871.0,0.002]
[1761042272032,34.10956286,3871.1,3871.0,0.002]
[1761042272735,35.41590788,3871.1,3871.0,0.002]
[1761042273113,35.02153888,3871.1,3871.0,0.002]
[1761042273844,16.00981688,3871.1,3871.0,0.002]
[1761042274043,35.33006588,3871.1,3871.0,0.002]
[1761042274242,31.22290588,3871.1,3871.0,0.002]
[1761042274538,31.12390588,3871.1,3871.0,0.002]
[1761042274906,31.55405688,3871.1,3871.0,0.002]
[1761042275442,31.16338288,3871.1,3871.0,0.002]
[1761042275948,15.91081688,3871.1,3871.0,0.002]
[1761042276155,33.21284888,3871.1,3871.0,0.002]
[1761042276712,32.49434492,3871.1,3871.0,0.002]
[1761042277126,36.73962792,3871.1,3871.0,0.002]
[1761042277747,35.41098792,3871.1,3871.0,0.002]
[1761042277942,35.05472992,3871.1,3871.0,0.002]
[1761042278108,31.94691292,3871.1,3871.0,0.002]
[1761042278544,31.54921192,3871.1,3871.0,0.002]
[1761042279126,36.87174492,3871.1,3871.0,0.002]
[1761042279450,30.18922492,3871.1,3871.0,0.002]
[1761042280048,15.19231292,3871.1,3871.0,0.002]
[1761042280225,31.65022192,3871.1,3871.0,0.002]
[1761042280549,31.10072792,3871.1,3871.0,0.002]
[1761042281328,32.27568992,3871.1,3871.0,0.002]
[1761042282348,34.56881492,3871.1,3871.0,0.002]
[1761042282526,34.15113892,3871.1,3871.0,0.002]
[1761042282953,33.93804892,3871.1,3871.0,0.002]
[1761042283311,33.53280027,3871.1,3871.0,0.002]
[1761042285470,34.53180027,3871.1,3871.0,0.002]
[1761042286243,34.63080027,3871.1,3871.0,0.002]
[1761042286569,35.99466038,3871.1,3871.0,0.002]
[1761042287067,35.69152038,3871.1,3871.0,0.002]
[1761042287276,34.59352038,3871.1,3871.0,0.002]
[1761042287568,15.19230438,3871.1,3871.0,0.002]
[1761042287736,34.22756838,3871.1,3871.0,0.002]
[1761042288740,32.45656438,3871.1,3871.0,0.002]
[1761042289875,32.14876438,3871.1,3871.0,0.002]
[1761042290052,30.09865838,3871.1,3871.0,0.002]
[1761042290866,32.14335838,3871.1,3871.0,0.002]
[1761042291686,32.83035838,3871.1,3871.0,0.002]
[1761042292747,39.95503524,3871.1,3871.0,0.002]
[1761042292969,39.34901524,3871.1,3871.0,0.002]
[1761042293488,38.11981924,3871.1,3871.0,0.002]
[1761042293893,15.59875324,3871.1,3871.0,0.002]
[1761042294073,38.78177124,3871.1,3871.0,0.002]
[1761042294875,15.49975324,3871.1,3871.0,0.002]
[1761042295173,37.62989824,3871.1,3871.0,0.002]
[1761042295874,35.08605524,3871.1,3871.0,0.002]
[1761042296077,35.58907324,3871.1,3871.0,0.002]
[1761042297078,37.43132624,3871.1,3871.0,0.002]
[1761042297973,15.59875324,3871.1,3871.0,0.002]
[1761042298145,37.78457224,3871.1,3871.0,0.002]
[1761042299079,42.74546624,3871.1,3871.0,0.002]
[1761042300089,50.59327624,3871.1,3871.0,0.002]
[1761042300295,32.31350702,3870.7,3870.6,0.002]
[1761042300582,42.05480406,3870.7,3870.6,0.002]
[1761042300882,38.24842406,3870.7,3870.6,0.002]
[1761042301073,39.41101916,3870.7,3870.6,0.002]
[1761042301580,41.23801916,3870.7,3870.6,0.002]
[1761042301897,41.34165241,3870.7,3870.6,0.002]
[1761042302053,51.35226272,3870.7,3870.6,0.002]
[1761042302251,45.16760093,3870.7,3870.6,0.002]
[1761042303098,15.16760093,3870.7,3870.6,0.002]
[1761042303288,45.16760093,3870.7,3870.6,0.002]
[1761042304287,45.06396768,3870.7,3870.6,0.002]
[1761042305064,15.06396768,3870.7,3870.6,0.002]
[1761042305273,23.36457089,3870.7,3870.6,0.002]
[1761042305476,22.95923295,3870.7,3870.6,0.002]
[1761042305663,23.36455658,3870.7,3870.6,0.002]
[1761042305870,23.75905945,3870.7,3870.6,0.002]
[1761042306085,14.15063882,3870.7,3870.6,0.002]
[1761042306312,38.26982882,3870.7,3870.6,0.002]
[1761042306484,28.51901782,3870.7,3870.6,0.002]
[1761042307286,35.38574382,3870.7,3870.6,0.002]
[1761042308165,35.22081682,3870.7,3870.6,0.002]
[1761042308992,35.62614339,3870.7,3870.6,0.002]
[1761042309191,41.84293939,3870.7,3870.6,0.002]
[1761042309405,42.24938825,3870.7,3870.6,0.002]